fUST/lending_fUST_20240717
["ID","MTS","AMOUNT","RATE_DAILY","PERIOD"]
[332435674,1721181047590,-500.0,0.00021917,2]
[332435675,1721181047600,-451.9552508,0.00021917,2]
[332435676,1721181047611,-500.0,0.00021917,2]
[332435677,1721181047622,-500.0,0.00021917,2]
[332435678,1721181047632,-500.0,0.00021917,2]
[332435679,1721181047642,-500.0,0.00021917,2]
[332435680,1721181047654,-500.0,0.00021917,2]
[332435681,1721181047663,-511.36376727,0.00021917,2]
[332435682,1721181047673,-500.0,0.00021917,2]
[332435683,1721181047683,-502.2690887,0.00021917,2]
[332435684,1721181047693,-500.0,0.00021917,2]
[332435685,1721181047705,-151.0,0.00021917,2]
[332435686,1721181047716,-416.36063986,0.00021917,2]
[332435687,1721181047727,-500.0,0.00021917,2]
[332435688,1721181047738,-500.0,0.00021917,2]
[332435689,1721181047749,-500.0,0.00021917,2]
[332435690,1721181047759,-500.0,0.00021917,2]
[332435691,1721181047768,-500.0,0.00021917,2]
[332435692,1721181047777,-500.0,0.00021917,2]
[332435693,1721181047790,-500.0,0.00021917,2]
[332435694,1721181047799,-501.63759292,0.00021917,2]
[332435695,1721181047811,-500.0,0.00021917,2]
[332435696,1721181047820,-500.0,0.00021917,2]
[332435697,1721181047829,-500.0,0.00021917,2]
[332435698,1721181047839,-501.31863594,0.00021917,2]
[332435699,1721181047848,-500.0,0.00021917,2]
[332435700,1721181047857,-500.0,0.00021917,2]
[332435701,1721181047866,-500.0,0.00021917,2]
[332435702,1721181047876,-500.0,0.00021917,2]
[332435703,1721181047885,-500.0,0.00021917,2]
[332435704,1721181047894,-500.0,0.00021917,2]
[332435705,1721181047904,-500.0,0.00021917,2]
[332435706,1721181047914,-500.0,0.00021917,2]
[332435707,1721181047923,-500.0,0.00021917,2]
[332435708,1721181047933,-500.0,0.00021917,2]
[332435709,1721181047943,-500.49192096,0.00021917,2]
[332435710,1721181047952,-507.77035777,0.00021917,2]
[332435711,1721181047962,-500.0,0.00021917,2]
[332435712,1721181047972,-500.0,0.00021917,2]
[332435713,1721181047981,-500.0,0.00021917,2]
[332435714,1721181047991,-500.0,0.00021917,2]
[332435715,1721181048000,-500.0,0.00021917,2]
[332435716,1721181048010,-500.0,0.00021917,2]
[332435717,1721181048020,-1556.07,0.00021917,2]
[332435718,1721181048030,-500.0,0.00021917,2]
[332435719,1721181048041,-500.0,0.00021917,2]
[332435720,1721181048051,-500.0,0.00021917,2]
[332435721,1721181048062,-500.0,0.00021917,2]
[332435722,1721181048074,-500.0,0.00021917,2]
[332435723,1721181048085,-500.0,0.00021917,2]
[332435724,1721181048094,-500.0,0.00021917,2]
[332435725,1721181048104,-151.0,0.00021917,2]
[332435726,1721181048115,-500.0,0.00021917,2]
[332435727,1721181048125,-500.0,0.00021917,2]
[332435728,1721181048134,-151.942655,0.00021917,2]
[332435729,1721181048143,-151.0,0.00021917,2]
[332435730,1721181048153,-500.0,0.00021917,2]
[332435731,1721181048163,-500.0,0.00021917,2]
[332435732,1721181048173,-151.0,0.00021917,2]
[332435733,1721181048183,-509.91337084,0.00021917,2]
[332435734,1721181048192,-501.54732919,0.00021917,2]
[332435735,1721181048203,-500.0,0.00021917,2]
[332435736,1721181048215,-500.0,0.00021917,2]
[332435737,1721181048225,-502.67296792,0.00021917,2]
[332435738,1721181048236,-500.0,0.00021917,2]
[332435739,1721181048247,-501.15104022,0.00021917,2]
[332435740,1721181048258,-500.0,0.00021917,2]
[332435741,1721181048268,-500.0,0.00021917,2]
[332435742,1721181048277,-500.0,0.00021917,2]
[332435743,1721181048289,-500.0,0.00021917,2]
[332435744,1721181048298,-500.0,0.00021917,2]
[332435745,1721181048308,-500.0,0.00021917,2]
[332435746,1721181048321,-500.0,0.00021917,2]
[332435747,1721181048330,-500.0,0.00021917,2]
[332435748,1721181048340,-500.0,0.00021917,2]
[332435749,1721181048350,-500.0,0.00021917,2]
[332435750,1721181048360,-500.0,0.00021917,2]
[332435751,1721181048370,-500.0,0.00021917,2]
[332435752,1721181048379,-500.0,0.00021917,2]
[332435753,1721181048388,-500.0,0.00021917,2]
[332435754,1721181048398,-500.0,0.00021917,2]
[332435755,1721181048408,-368.72532816,0.00021917,2]
[332435756,1721181048418,-500.0,0.00021917,2]
[332435757,1721181048427,-500.0,0.00021917,2]
[332435758,1721181048437,-500.0,0.00021917,2]
[332435759,1721181048446,-500.0,0.00021917,2]
[332435760,1721181048456,-500.0,0.00021917,2]
[332435761,1721181048466,-151.0,0.00021917,2]
[332435762,1721181048476,-500.0,0.00021917,2]
[332435763,1721181048485,-151.0,0.00021917,2]
[332435764,1721181048495,-151.0,0.00021917,2]
[332435765,1721181048505,-500.0,0.00021917,2]
[332435766,1721181048515,-500.24157953,0.00021917,2]
[332435767,1721181048525,-500.0,0.00021917,2]
[332435768,1721181048534,-500.0,0.00021917,2]
[332435769,1721181048545,-500.14455914,0.00021917,2]
[332435770,1721181048555,-524.40491596,0.00021917,2]
[332435771,1721181048570,-500.0,0.00021917,2]
[332435772,1721181048579,-500.64877549,0.00021917,2]
[332435773,1721181048589,-500.0,0.00021917,2]
[332435774,1721181048599,-500.0,0.00021917,2]
[332435775,1721181048609,-502.6931602,0.00021917,2]
[332435776,1721181048618,-501.10960486,0.00021917,2]
[332435777,1721181048628,-500.0,0.00021917,2]
[332435778,1721181048638,-632.62101172,0.00021917,2]
[332435779,1721181048647,-501.76336932,0.00021917,2]
[332435780,1721181048657,-500.0,0.00021917,2]
[332435781,1721181048666,-501.52623324,0.00021917,2]
[332435782,1721181048676,-500.0,0.00021917,2]
[332435783,1721181048686,-500.0,0.00021917,2]
[332435784,1721181048695,-500.0,0.00021917,2]
[332435785,1721181048705,-500.0,0.00021917,2]
[332435786,1721181048714,-500.0,0.00021917,2]
[332435787,1721181048724,-504.43312534,0.00021917,2]
[332435788,1721181048733,-500.0,0.00021917,2]
[332435789,1721181048743,-517.40517704,0.00021917,2]
[332435790,1721181048753,-500.0,0.00021917,2]
[332435791,1721181048762,-500.0,0.00021917,2]
[332435792,1721181048772,-500.0,0.00021917,2]
[332435793,1721181048782,-500.0,0.00021917,2]
[332435794,1721181048793,-500.0,0.00021917,2]
[332435795,1721181048803,-500.0,0.00021917,2]
[332435796,1721181048816,-500.0,0.00021917,2]
[332435797,1721181048825,-500.0,0.00021917,2]
[332435798,1721181048834,-500.0,0.00021917,2]
[332435799,1721181048843,-500.0,0.00021917,2]
[332435800,1721181048855,-500.0,0.00021917,2]
[332435801,1721181048865,-500.0,0.00021917,2]
[332435802,1721181048874,-500.0,0.00021917,2]
[332435803,1721181048884,-503.78582817,0.00021917,2]
[332435804,1721181048893,-299.52447783,0.00021917,2]
[332435805,1721181048904,-500.0,0.00021917,2]
[332435806,1721181048915,-510.87074694,0.00021917,2]
[332435807,1721181048924,-503.27635602,0.00021917,2]
[332435808,1721181048934,-500.0,0.00021917,2]
[332435809,1721181048944,-501.22446049,0.00021917,2]
[332435810,1721181048955,-500.0,0.00021917,2]
[332435811,1721181048964,-500.0,0.00021917,2]
[332435812,1721181048973,-500.0,0.00021917,2]
[332435813,1721181048983,-507.97175011,0.00021917,2]
[332435814,1721181048992,-151.0,0.00021917,2]
[332435815,1721181049003,-500.0,0.00021917,2]
[332435816,1721181049013,-500.0,0.00021917,2]
[332435817,1721181049023,-500.0,0.00021917,2]
[332435818,1721181049034,-503.51394679,0.00021917,2]
[332435819,1721181049043,-500.0,0.00021917,2]
[332435820,1721181049054,-500.0,0.00021917,2]
[332435821,1721181049066,-500.0,0.00021917,2]
[332435822,1721181049075,-500.0,0.00021917,2]
[332435823,1721181049084,-500.0,0.00021917,2]
[332435824,1721181049094,-500.0,0.00021917,2]
[332435825,1721181049103,-538.77411081,0.00021917,2]
[332435826,1721181049113,-500.0,0.00021917,2]
[332435827,1721181049122,-500.0,0.00021917,2]
[332435828,1721181049132,-151.0,0.00021917,2]
[332435829,1721181049141,-500.0,0.00021917,2]
[332435830,1721181049150,-434.62561092,0.00021917,2]
[332435831,1721181049160,-500.0,0.00021917,2]
[332435832,1721181049169,-500.0,0.00021917,2]
[332435833,1721181049179,-500.0,0.00021917,2]
[332435834,1721181049188,-500.0,0.00021917,2]
[332435835,1721181049197,-500.0,0.00021917,2]
[332435836,1721181049207,-502.79918602,0.00021917,2]
[332435837,1721181049216,-500.0,0.00021917,2]
[332435838,1721181049226,-500.0,0.00021917,2]
[332435839,1721181049235,-500.0,0.00021917,2]
[332435840,1721181049246,-508.28451475,0.00021917,2]
[332435841,1721181049257,-500.0,0.00021917,2]
[332435842,1721181049266,-500.0,0.00021917,2]
[332435843,1721181049275,-500.0,0.00021917,2]
[332435844,1721181049286,-500.0,0.00021917,2]
[332435845,1721181049295,-409.47045097,0.00021917,2]
[332435846,1721181049305,-154.72539678,0.00021917,2]
[332435847,1721181049316,-151.0,0.00021917,2]
[332435848,1721181049326,-151.0,0.00021917,2]
[332435849,1721181049335,-276.68072807,0.00021917,2]
[332435850,1721181049345,-200.0,0.00021917,2]
[332435851,1721181049355,-500.0,0.00021917,2]
[332435852,1721181049364,-500.0,0.00021917,2]
[332435853,1721181049373,-500.0,0.00021917,2]
[332435854,1721181049383,-568.58,0.00021917,2]
[332435855,1721181049392,-508.49916907,0.00021917,2]
[332435856,1721181049401,-151.0,0.00021917,2]
[332435857,1721181049410,-500.0,0.00021917,2]
[332435858,1721181049420,-500.0,0.00021917,2]
[332435859,1721181049429,-500.0,0.00021917,2]
[332435860,1721181049438,-500.0,0.00021917,2]
[332435861,1721181049447,-157.385552,0.00021917,2]
[332435862,1721181049456,-500.0,0.00021917,2]
[332435863,1721181049465,-503.33369823,0.00021917,2]
[332435864,1721181049474,-500.0,0.00021917,2]
[332435865,1721181049483,-505.91595934,0.00021917,2]
[332435866,1721181049493,-506.64162661,0.00021917,2]
[332435867,1721181049503,-151.0,0.00021917,2]
[332435868,1721181049512,-500.0,0.00021917,2]
[332435869,1721181049521,-151.0,0.00021917,2]
[332435870,1721181049531,-500.0,0.00021917,2]
[332435871,1721181049540,-500.0,0.00021917,2]
[332435872,1721181049550,-151.0,0.00021917,2]
[332435873,1721181049560,-500.0,0.00021917,2]
[332435874,1721181049570,-503.41203099,0.00021917,2]
[332435875,1721181049580,-151.0,0.00021917,2]
[332435876,1721181049589,-500.0,0.00021917,2]
[332435877,1721181049598,-500.0,0.00021917,2]
[332435878,1721181049608,-151.0,0.00021917,2]
[332435879,1721181049618,-500.0,0.00021917,2]
[332435880,1721181049627,-151.0,0.00021917,2]
[332435881,1721181049637,-500.0,0.00021917,2]
[332435882,1721181049647,-470.85827289,0.00021917,2]
[332435883,1721181049656,-500.0,0.00021917,2]
[332435884,1721181049665,-151.0,0.00021917,2]
[332435885,1721181049674,-524.36714738,0.00021917,2]
[332435886,1721181049684,-500.0,0.00021917,2]
[332435887,1721181049693,-500.0,0.00021917,2]
[332435888,1721181049702,-500.0,0.00021917,2]
[332435889,1721181049712,-500.0,0.00021917,2]
[332435890,1721181049721,-500.0,0.00021917,2]
[332435891,1721181049731,-500.0,0.00021917,2]
[332435892,1721181049741,-503.14824804,0.00021917,2]
[332435893,1721181049750,-151.0,0.00021917,2]
[332435894,1721181049760,-500.0,0.00021917,2]
[332435895,1721181049770,-500.0,0.00021917,2]
[332435896,1721181049779,-361.28774393,0.00021917,2]
[332435897,1721181049789,-151.0,0.00021917,2]
[332435898,1721181049799,-500.0,0.00021917,2]
[332435899,1721181049808,-531.02602835,0.00021917,2]
[332435900,1721181049820,-189.498226,0.00021917,2]
[332435901,1721181049830,-500.11783728,0.00021917,2]
[332435902,1721181049839,-151.0,0.00021917,2]
[332435903,1721181049851,-500.0,0.00021917,2]
[332435904,1721181049861,-502.99385218,0.00021917,2]
[332435905,1721181049872,-500.0,0.00021917,2]
[332435906,1721181049882,-500.0,0.00021917,2]
[332435907,1721181049891,-500.0,0.00021917,2]
[332435908,1721181049901,-151.0,0.00021917,2]
[332435909,1721181049911,-500.0,0.00021917,2]
[332435910,1721181049920,-500.0,0.00021917,2]
[332435911,1721181049930,-500.0,0.00021917,2]
[332435912,1721181049939,-500.0,0.00021917,2]
[332435913,1721181049949,-500.0,0.00021917,2]
[332435914,1721181049959,-500.0,0.00021917,2]
[332435915,1721181049968,-155.280189,0.00021917,2]
[332435916,1721181049978,-151.0,0.00021917,2]
[332435917,1721181049988,-511.26361884,0.00021917,2]
[332435918,1721181049996,-188.380276,0.00021917,2]
[332435919,1721181050006,-274.053847,0.00021917,2]
[332435920,1721181050016,-274.053847,0.00021917,2]
[332435921,1721181050025,-500.0,0.00021917,2]
[332435922,1721181050035,-500.0,0.00021917,2]
[332435923,1721181050044,-151.0,0.00021917,2]
[332435924,1721181050166,-500.0,0.00021917,2]
[332435925,1721181050177,-503.31436578,0.00021917,2]
[332435926,1721181050186,-500.0,0.00021917,2]
[332435927,1721181050197,-177.870273,0.00021917,2]
[332435928,1721181050207,-177.870273,0.00021917,2]
[332435929,1721181050218,-599.6110334,0.00021917,2]
[332435930,1721181050229,-500.0,0.00021917,2]
[332435931,1721181050242,-500.0,0.00021917,2]
[332435932,1721181050255,-166.666666,0.00021918,2]
[332435933,1721181050264,-151.0,0.00021918,2]
[332435934,1721181050273,-153.0,0.00021918,2]
[332435935,1721181050283,-153.0,0.00021918,2]
[332435936,1721181050294,-153.0,0.00021918,2]
[332435937,1721181050306,-153.0,0.00021918,2]
[332435938,1721181050318,-153.0,0.00021918,2]
[332435939,1721181050331,-153.0,0.00021918,2]
[332435940,1721181050341,-153.0,0.00021918,2]
[332435941,1721181050350,-153.0,0.00021918,2]
[332435942,1721181050359,-153.0,0.00021918,2]
[332435943,1721181050368,-153.0,0.00021918,2]
[332435944,1721181050378,-153.0,0.00021918,2]
[332435945,1721181050388,-153.0,0.00021918,2]
[332435946,1721181050397,-153.0,0.00021918,2]
[332435947,1721181050407,-153.0,0.00021918,2]
[332435948,1721181050416,-153.0,0.00021918,2]
[332435949,1721181050425,-153.0,0.00021918,2]
[332435950,1721181050435,-153.0,0.00021918,2]
[332435951,1721181050444,-153.0,0.00021918,2]
[332435952,1721181050454,-153.0,0.00021918,2]
[332435953,1721181050463,-153.0,0.00021918,2]
[332435954,1721181050472,-153.0,0.00021918,2]
[332435955,1721181050481,-153.0,0.00021918,2]
[332435956,1721181050491,-153.0,0.00021918,2]
[332435957,1721181050500,-153.0,0.00021918,2]
[332435958,1721181050510,-153.0,0.00021918,2]
[332435959,1721181050520,-153.0,0.00021918,2]
[332435960,1721181050531,-153.0,0.00021918,2]
[332435961,1721181050542,-153.0,0.00021918,2]
[332435962,1721181050552,-153.0,0.00021918,2]
[332435963,1721181050562,-153.0,0.00021918,2]
[332435964,1721181050571,-153.0,0.00021918,2]
[332435965,1721181050581,-153.0,0.00021918,2]
[332435966,1721181050591,-153.0,0.00021918,2]
[332435967,1721181050601,-153.0,0.00021918,2]
[332435968,1721181050611,-153.0,0.00021918,2]
[332435969,1721181050622,-153.0,0.00021918,2]
[332435970,1721181050633,-153.0,0.00021918,2]
[332435971,1721181050644,-153.0,0.00021918,2]
[332435972,1721181050654,-153.0,0.00021918,2]
[332435973,1721181050663,-153.0,0.00021918,2]
[332435974,1721181050673,-153.0,0.00021918,2]
[332435975,1721181050683,-153.0,0.00021918,2]
[332435976,1721181050692,-153.0,0.00021918,2]
[332435977,1721181050703,-151.0,0.0002192,7]
[332435978,1721181050714,-151.0,0.0002192,7]
[332435979,1721181050725,-151.0,0.0002192,7]
[332435980,1721181050735,-3000.0,0.0002192,2]
[332435981,1721181050745,-3000.0,0.0002193,2]
[332435982,1721181050756,-3000.0,0.0002194,2]
[332435983,1721181050766,-3000.0,0.0002195,2]
[332435984,1721181050776,-3000.0,0.0002196,2]
[332435985,1721181050786,-3000.0,0.0002197,2]
[332435986,1721181050797,-691.6,0.00021978,2]
[332435987,1721181050806,-3000.0,0.0002198,2]
[332435988,1721181050817,-3000.0,0.0002199,2]
[332435989,1721181050827,-248.11643315,0.00022,2]
[332435990,1721181050836,-150.112233,0.00022,3]
[332435991,1721181050847,-150.112233,0.00022,5]
[332435992,1721181050857,-3000.0,0.00022,2]
[332435993,1721181050867,-150.112233,0.00022,3]
[332435994,1721181050878,-150.112233,0.00022,2]
[332435995,1721181050888,-150.112233,0.00022,2]
[332435996,1721181050898,-175.0,0.00022,2]
[332435997,1721181050910,-3000.0,0.0002201,2]
[332435998,1721181050920,-151.0,0.00022012,7]
[332435999,1721181050931,-153.0,0.00022012,2]
[332436000,1721181050943,-153.0,0.00022012,2]
[332436001,1721181050954,-153.0,0.00022012,2]
[332436002,1721181050964,-153.0,0.00022012,2]
[332436003,1721181050974,-153.0,0.00022012,2]
[332436004,1721181050984,-153.0,0.00022012,2]
[332436005,1721181050994,-153.0,0.00022012,2]
[332436006,1721181051004,-3000.0,0.0002202,2]
[332436007,1721181051014,-156.399762,0.00022025,2]
[332436008,1721181051023,-3000.0,0.0002203,2]
[332436009,1721181051033,-3000.0,0.0002204,2]
[332436010,1721181051043,-3000.0,0.0002205,2]
[332436011,1721181051053,-3447.316157,0.0002206,2]
[332436012,1721181051063,-151.0,0.0002206,7]
[332436013,1721181051075,-151.0,0.0002206,7]
[332436014,1721181051084,-151.0,0.0002206,7]
[332436015,1721181051093,-274.053847,0.0002206,7]
[332436016,1721181051103,-274.053847,0.0002206,7]
[332436017,1721181051114,-177.870273,0.0002206,7]
[332436018,1721181051125,-177.870273,0.0002206,7]
[332436019,1721181051135,-150.112233,0.000221,4]
[332436020,1721181051145,-150.112233,0.000221,5]
[332436021,1721181051155,-150.112233,0.000221,4]
[332436022,1721181051164,-150.112233,0.000221,4]
[332436023,1721181051174,-150.112233,0.000221,3]
[332436024,1721181051184,-193.23738296,0.00022159,2]
[332436025,1721181051195,-1418.05,0.0002219,2]
[332436026,1721181051206,-1418.05,0.0002219,2]
[332436027,1721181051218,-1418.05,0.0002219,2]
[332436028,1721181051228,-1418.05,0.0002219,2]
[332436029,1721181051238,-1418.15955381,0.0002219,2]
[332436030,1721181051249,-1330.78,0.0002219,2]
[332436031,1721181051260,-1330.78,0.0002219,2]
[332436032,1721181051269,-1330.78,0.0002219,2]
[332436033,1721181051279,-1330.78,0.0002219,2]
[332436034,1721181051289,-1330.99742571,0.0002219,2]
[332436035,1721181051299,-151.0,0.0002219,7]
[332436036,1721181051309,-183.185796,0.0002219,7]
[332436037,1721181051321,-151.0,0.0002219,7]
[332436038,1721181051333,-151.0,0.0002219,7]
[332436039,1721181051345,-151.0,0.0002219,7]
[332436040,1721181051355,-151.0,0.0002219,7]
[332436041,1721181051364,-151.0,0.0002219,7]
[332436042,1721181051374,-151.0,0.0002219,7]
[332436043,1721181051384,-151.0,0.0002219,7]
[332436044,1721181051395,-151.0,0.0002219,7]
[332436045,1721181051404,-175.72896542,0.00022191,2]
[332436046,1721181051415,-512.53240108,0.00022191,2]
[332436047,1721181051426,-512.18678814,0.00022191,2]
[332436048,1721181051436,-232.01771972,0.00022191,2]
[332436049,1721181051445,-500.0,0.00022191,2]
[332436050,1721181051455,-500.0,0.00022191,2]
[332436051,1721181051465,-500.0,0.00022191,2]
[332436052,1721181051476,-500.88802684,0.00022191,2]
[332436053,1721181051486,-503.56937767,0.00022191,2]
[332436054,1721181051497,-500.0,0.00022191,2]
[332436055,1721181051509,-500.0,0.00022191,2]
[332436056,1721181051520,-500.0,0.00022191,2]
[332436057,1721181051531,-508.24835316,0.00022191,2]
[332436058,1721181051541,-500.0,0.00022191,2]
[332436059,1721181051550,-500.0,0.00022191,2]
[332436060,1721181051559,-503.93677043,0.00022191,2]
[332436061,1721181051569,-581.08219485,0.00022191,2]
[332436062,1721181051581,-508.13075862,0.00022191,2]
[332436063,1721181051591,-501.97467573,0.00022191,2]
[332436064,1721181051602,-500.0,0.00022191,2]
[332436065,1721181051611,-503.78510247,0.00022191,2]
[332436066,1721181051622,-500.0,0.00022191,2]
[332436067,1721181051633,-508.58291982,0.00022191,2]
[332436068,1721181051644,-502.59640421,0.00022191,2]
[332436069,1721181051655,-577.13763981,0.00022191,2]
[332436070,1721181051665,-500.0,0.00022191,2]
[332436071,1721181051673,-506.41767295,0.00022191,2]
[332436072,1721181051683,-500.0,0.00022191,2]
[332436073,1721181051693,-500.0,0.00022191,2]
[332436074,1721181051702,-598.29583107,0.00022191,2]
[332436075,1721181051711,-500.0,0.00022191,2]
[332436076,1721181051719,-501.62515086,0.00022191,2]
[332436077,1721181051729,-500.0,0.00022191,2]
[332436078,1721181051739,-500.0,0.00022191,2]
[332436079,1721181051750,-507.43812048,0.00022191,2]
[332436080,1721181051759,-505.94928361,0.00022191,2]
[332436081,1721181051768,-500.0,0.00022191,2]
[332436082,1721181051777,-505.78944937,0.00022191,2]
[332436083,1721181051786,-502.28224503,0.00022191,2]
[332436084,1721181051795,-505.24937632,0.00022191,2]
[332436085,1721181051804,-519.94911542,0.00022191,2]
[332436086,1721181051813,-504.58301085,0.00022191,2]
[332436087,1721181051823,-236.09209678,0.00022191,2]
[332436088,1721181051832,-507.6742072,0.00022191,2]
[332436089,1721181051841,-505.07666849,0.00022191,2]
[332436090,1721181051850,-500.0,0.00022191,2]
[332436091,1721181051859,-505.63731307,0.00022191,2]
[332436092,1721181051869,-515.51576166,0.00022191,2]
[332436093,1721181051878,-514.61820134,0.00022191,2]
[332436094,1721181051887,-517.35164914,0.00022191,2]
[332436095,1721181051896,-500.0,0.00022191,2]
[332436096,1721181051906,-500.0,0.00022191,2]
[332436097,1721181051916,-520.01324135,0.00022191,2]
[332436098,1721181051928,-500.0,0.00022191,2]
[332436099,1721181051938,-506.37457624,0.00022191,2]
[332436100,1721181051950,-500.0,0.00022191,2]
[332436101,1721181051960,-500.0,0.00022191,2]
[332436102,1721181051969,-573.2945138,0.00022191,2]
[332436103,1721181051978,-544.13353097,0.00022191,2]
[332436104,1721181051988,-500.0,0.00022191,2]
[332436105,1721181051998,-500.0,0.00022191,2]
[332436106,1721181052008,-500.0,0.00022191,2]
[332436107,1721181052019,-503.57964101,0.00022191,2]
[332436108,1721181052029,-500.0,0.00022191,2]
[332436109,1721181052039,-500.0,0.00022191,2]
[332436110,1721181052051,-500.0,0.00022191,2]
[332436111,1721181052060,-508.8507944,0.00022191,2]
[332436112,1721181052072,-511.10227379,0.00022191,2]
[332436113,1721181052083,-500.0,0.00022191,2]
[332436114,1721181052092,-500.0,0.00022191,2]
[332436115,1721181052101,-4425.24,0.00022191,2]
[332436116,1721181052111,-500.0,0.00022191,2]
[332436117,1721181052120,-502.71279526,0.00022191,2]
[332436118,1721181052129,-500.0,0.00022191,2]
[332436119,1721181052139,-500.0,0.00022191,2]
[332436120,1721181052148,-500.0,0.00022191,2]
[332436121,1721181052157,-2280.85,0.00022191,2]
[332436122,1721181052166,-337.42569232,0.00022191,2]
[332436123,1721181052175,-501.72825127,0.00022191,2]
[332436124,1721181052184,-500.0,0.00022191,2]
[332436125,1721181052194,-504.12833714,0.00022191,2]
[332436126,1721181052203,-500.0,0.00022191,2]
[332436127,1721181052212,-502.14058153,0.00022191,2]
[332436128,1721181052221,-509.94317169,0.00022191,2]
[332436129,1721181052230,-505.1986384,0.00022191,2]
[332436130,1721181052240,-500.0,0.00022191,2]
[332436131,1721181052252,-500.0,0.00022191,2]
[332436132,1721181052262,-500.0,0.00022191,2]
[332436133,1721181052271,-504.99823738,0.00022191,2]
[332436134,1721181052280,-500.0,0.00022191,2]
[332436135,1721181052290,-500.0,0.00022191,2]
[332436136,1721181052299,-500.0,0.00022191,2]
[332436137,1721181052308,-500.0,0.00022191,2]
[332436138,1721181052319,-503.72914366,0.00022191,2]
[332436139,1721181052329,-500.0,0.00022191,2]
[332436140,1721181052341,-512.36197083,0.00022191,2]
[332436141,1721181052352,-500.0,0.00022191,2]
[332436142,1721181052362,-536.62897288,0.00022191,2]
[332436143,1721181052372,-500.0,0.00022191,2]
[332436144,1721181052382,-503.51234351,0.00022191,2]
[332436145,1721181052391,-500.0,0.00022191,2]
[332436146,1721181052401,-514.00293293,0.00022191,2]
[332436147,1721181052412,-500.0,0.00022191,2]
[332436148,1721181052422,-500.0,0.00022191,2]
[332436149,1721181052431,-512.98185208,0.00022191,2]
[332436150,1721181052441,-500.0,0.00022191,2]
[332436151,1721181052451,-234.00721895,0.00022191,2]
[332436152,1721181052461,-500.0,0.00022191,2]
[332436153,1721181052470,-522.38778725,0.00022191,2]
[332436154,1721181052480,-500.0,0.00022191,2]
[332436155,1721181052491,-505.52967603,0.00022191,2]
[332436156,1721181052502,-500.0,0.00022191,2]
[332436157,1721181052512,-507.59088477,0.00022191,2]
[332436158,1721181052522,-500.0,0.00022191,2]
[332436159,1721181052533,-531.85462755,0.00022191,2]
[332436160,1721181052543,-500.0,0.00022191,2]
[332436161,1721181052553,-513.07638177,0.00022191,2]
[332436162,1721181052676,-503.1774399,0.00022191,2]
[332436163,1721181052685,-572.42693391,0.00022191,2]
[332436164,1721181052695,-510.891384,0.00022191,2]
[332436165,1721181052704,-502.87994298,0.00022191,2]
[332436166,1721181052716,-500.0,0.00022191,2]
[332436167,1721181052726,-500.0,0.00022191,2]
[332436168,1721181052737,-500.0,0.00022191,2]
[332436169,1721181052746,-506.76091505,0.00022191,2]
[332436170,1721181052755,-500.0,0.00022191,2]
[332436171,1721181052764,-500.0,0.00022191,2]
[332436172,1721181052774,-500.0,0.00022191,2]
[332436173,1721181052785,-500.0,0.00022191,2]